bitfinex-derivatives/quotes_BTCF0:USTF0_20250929
["timestamp","ask_amount","ask_price","bid_price","bid_amount"]
[1759137906832,0.74279171,112150.0,112140.0,0.02744]
[1759137907130,0.74279171,112150.0,112140.0,0.3081246]
[1759137908126,0.7223147,112150.0,112140.0,0.3081246]
[1759137908928,0.7223147,112150.0,112140.0,0.05037]
[1759137909330,0.7223147,112150.0,112140.0,0.3081246]
[1759137909631,0.79381172,112150.0,112140.0,0.3081246]
[1759137910339,0.53605712,112150.0,112140.0,0.3972719]
[1759137910544,0.79381172,112150.0,112140.0,0.3972719]
[1759137911141,0.53605712,112150.0,112140.0,0.3972719]
[1759137911437,0.79381172,112150.0,112140.0,0.3972719]
[1759137916038,0.68415712,112150.0,112140.0,0.3972719]
[1759137916244,0.79381172,112150.0,112140.0,0.3972719]
[1759137918242,0.79380828,112150.0,112140.0,0.39726846]
[1759137918633,0.08611702,112150.0,112140.0,0.39726846]
[1759137918835,0.08611702,112150.0,112140.0,0.70312184]
[1759137919042,0.17525662,112150.0,112140.0,0.44537068]
[1759137919541,0.08611702,112150.0,112140.0,0.44537068]
[1759137919842,0.17525752,112150.0,112140.0,0.44537068]
[1759137923542,0.08611702,112150.0,112140.0,0.39726846]
[1759137924841,0.001,112150.0,112140.0,1.41581962]
[1759137925440,1.2759085,112170.0,112160.0,0.1261723]
[1759137925638,1.55413389,112170.0,112160.0,0.1261723]
[1759137926449,1.55713389,112170.0,112160.0,0.1261723]
[1759137926947,1.55513389,112170.0,112160.0,0.1261723]
[1759137927548,0.1027518,112160.0,112150.0,0.38393106]
[1759137929247,0.01362,112160.0,112150.0,0.39393106]
[1759137929452,0.37442,112170.0,112160.0,0.1261729]
[1759137929647,0.03409426,112170.0,112160.0,0.38392406]
[1759137929953,0.463537,112180.0,112170.0,0.126165]
[1759137930153,0.48400876,112180.0,112170.0,0.38391616]
[1759137930453,0.39489176,112180.0,112170.0,0.38391616]
[1759137931446,0.48400686,112180.0,112170.0,0.38391616]
[1759137931655,0.02047176,112180.0,112170.0,1.04166732]
[1759137932050,1.36569517,112190.0,112180.0,0.1261553]
[1759137932242,1.39978624,112190.0,112180.0,0.38390646]
[1759137932445,0.58750624,112190.0,112180.0,0.38390646]
[1759137932647,0.58750624,112190.0,112180.0,0.29479116]
[1759137932843,0.58750624,112190.0,112180.0,0.03704]
[1759137933053,0.1027364,112180.0,112170.0,0.38391536]
[1759137933247,0.48300747,112180.0,112170.0,0.38391536]
[1759137933549,0.48200747,112180.0,112170.0,0.38391536]
[1759137935350,0.48600747,112180.0,112170.0,0.38391536]
[1759137936056,0.48200747,112180.0,112170.0,0.38391536]
[1759137937058,0.48200747,112180.0,112170.0,0.1261642]
[1759137937257,0.4615364,112180.0,112170.0,0.38391536]
[1759137948359,0.71928756,112180.0,112170.0,0.03704]
[1759137948559,0.1027455,112170.0,112160.0,0.1262712]
[1759137948760,1.53333666,112170.0,112160.0,0.03714]
[1759137949762,1.53533666,112170.0,112160.0,0.03714]
[1759137949962,1.53533666,112170.0,112160.0,0.1262734]
[1759137950163,1.2775855,112170.0,112160.0,0.1262734]
[1759137950363,1.53533666,112170.0,112160.0,0.1262734]
[1759137951768,1.53433666,112170.0,112160.0,0.1262734]
[1759137952469,1.55480788,112170.0,112160.0,0.1262734]
[1759137954369,1.29705672,112170.0,112160.0,0.1262734]
[1759137954564,1.55480788,112170.0,112160.0,0.1262734]
[1759137956771,1.55476788,112170.0,112160.0,0.1262734]
[1759137958574,1.29701672,112170.0,112160.0,0.1262734]
[1759137958971,1.29701672,112170.0,112160.0,0.17437562]
[1759137960076,1.29701672,112170.0,112160.0,0.43212678]
[1759137960276,0.48501672,112170.0,112160.0,0.43212678]
[1759137960768,1.29701672,112170.0,112160.0,0.43212678]
[1759137962875,0.48501672,112170.0,112160.0,0.43212678]
[1759137963275,1.29701672,112170.0,112160.0,0.43212678]
[1759137963571,1.29701672,112170.0,112160.0,0.38402456]
[1759137965177,0.48501672,112170.0,112160.0,0.38402456]
[1759137965373,1.29701672,112170.0,112160.0,0.38402456]
[1759137967478,0.48501672,112170.0,112160.0,0.38402456]
[1759137967781,1.29697672,112170.0,112160.0,0.38402456]
[1759137968479,1.29699645,112170.0,112160.0,0.38402456]
[1759137970776,1.29699645,112170.0,112160.0,0.1262734]
[1759137971077,1.29699645,112170.0,112160.0,0.38402456]
[1759137973467,1.29699645,112170.0,112160.0,0.43212678]
[1759137974980,1.29699645,112170.0,112160.0,0.17437562]
[1759137975182,1.29699645,112170.0,112160.0,0.43212678]
[1759137977386,0.48503645,112170.0,112160.0,0.43212678]
[1759137977682,1.29815645,112170.0,112160.0,0.43212678]
[1759137979590,0.39591095,112170.0,112160.0,0.43212678]
[1759137979784,1.20891095,112170.0,112160.0,0.43212678]
[1759137980181,1.29803745,112170.0,112160.0,0.68963594]
[1759137982091,0.48503745,112170.0,112160.0,0.68963594]
[1759137982285,0.12423745,112170.0,112160.0,1.40233372]
[1759137985491,0.1037465,112170.0,112160.0,1.40233372]
[1759137987088,0.1037465,112170.0,112160.0,1.40733372]
[1759137989491,0.1037464,112170.0,112160.0,1.40733372]
[1759137989685,0.001,112170.0,112160.0,1.40733372]
[1759137990191,0.001,112170.0,112160.0,1.66496388]
[1759137990485,0.09614051,112190.0,112180.0,0.1250185]
[1759137990790,0.20570774,112190.0,112180.0,1.04919498]
[1759137990981,0.20410774,112190.0,112180.0,1.04919498]
[1759137991186,0.20450774,112190.0,112180.0,1.04919498]
[1759137992191,0.22550774,112190.0,112180.0,0.53593466]
[1759137992385,0.22550774,112190.0,112180.0,1.05119498]
[1759137993485,0.22550774,112190.0,112180.0,1.00307882]
[1759137994197,0.06419847,112190.0,112180.0,1.00307882]
[1759137994382,0.0198513,112190.0,112180.0,2.06962514]
[1759137994587,0.0198513,112190.0,112180.0,2.02150898]
[1759137994986,0.0202513,112190.0,112180.0,2.02150898]
[1759137995391,0.0202513,112190.0,112180.0,2.83918898]
[1759137995696,0.0202513,112190.0,112180.0,2.0394813]
[1759137995896,0.0202513,112190.0,112180.0,2.8571613]
[1759137996193,0.0202513,112190.0,112180.0,2.8572013]
[1759137996390,0.0202513,112190.0,112180.0,2.90520999]
[1759137996791,0.0202513,112190.0,112180.0,2.90512999]
[1759137997094,0.0202513,112190.0,112180.0,2.64741983]
[1759137997693,0.0202513,112190.0,112180.0,1.82985983]
[1759137997997,0.0202513,112190.0,112180.0,2.64749983]
[1759137998597,0.0202513,112190.0,112180.0,1.82985983]
[1759137998797,0.0202513,112190.0,112180.0,2.64741983]
[1759137999400,0.0202513,112190.0,112180.0,2.24741983]
[1759137999697,0.0202513,112190.0,112180.0,1.42985983]
[1759137999898,0.0202513,112190.0,112180.0,2.24765983]
[1759138001198,0.0004,112190.0,112180.0,2.24565983]
[1759138001399,0.0004,112190.0,112180.0,2.24529983]
[1759138001794,0.0024,112190.0,112180.0,2.24529983]
[1759138002494,0.0024,112190.0,112180.0,1.42785983]
[1759138002696,0.0024,112190.0,112180.0,2.24529983]
[1759138003202,0.0024,112190.0,112180.0,1.73003951]
[1759138003404,0.0024,112190.0,112180.0,2.24529983]
[1759138003903,0.0024,112190.0,112180.0,2.24513983]
[1759138004201,0.36276076,112190.0,112180.0,0.91259951]
[1759138004404,0.36276076,112190.0,112180.0,1.06705983]
[1759138004702,0.36276076,112190.0,112180.0,1.52461983]
[1759138004897,0.1051306,112190.0,112180.0,1.52461983]
[1759138005303,0.01602,112190.0,112180.0,1.52461983]
[1759138005600,0.01602,112190.0,112180.0,1.88541983]
[1759138007206,0.1051305,112190.0,112180.0,1.88541983]
[1759138008907,0.01602,112190.0,112180.0,1.88541983]
[1759138009904,0.1051305,112190.0,112180.0,1.88541983]
[1759138013011,0.01602,112190.0,112180.0,1.88541983]
[1759138013510,0.36276076,112190.0,112180.0,0.0359]
[1759138013711,0.74396504,112190.0,112180.0,0.0359]
[1759138013904,0.74396504,112190.0,112180.0,0.29353016]
[1759138015013,0.74396504,112190.0,112180.0,0.38264866]
[1759138015711,0.74396504,112190.0,112180.0,0.29353016]
[1759138016108,0.74396504,112190.0,112180.0,0.0359]
[1759138016706,1.1647388,112190.0,112180.0,0.0359]
[1759138017517,1.14396504,112190.0,112180.0,0.0359]
[1759138017816,1.14396504,112190.0,112180.0,0.1250185]
[1759138018616,1.14396504,112190.0,112180.0,0.38264866]
[1759138019210,0.88633488,112190.0,112180.0,0.1250185]
[1759138019407,1.96304504,112190.0,112180.0,0.38264866]
[1759138020017,1.70541488,112190.0,112180.0,0.38264866]
[1759138020314,1.14396504,112190.0,112180.0,0.38264866]
[1759138020513,1.60228504,112190.0,112180.0,0.38264866]
[1759138021222,1.60228504,112190.0,112180.0,0.1250185]
[1759138021513,1.75038504,112190.0,112180.0,0.38264866]
[1759138021707,1.34465488,112190.0,112180.0,0.38264866]
[1759138021914,1.60228504,112190.0,112180.0,0.38264866]
[1759138022518,0.78316504,112190.0,112180.0,0.38264866]
[1759138022713,0.52553488,112190.0,112180.0,0.1250185]
[1759138022916,0.12553488,112190.0,112180.0,0.64027882]
[1759138023520,0.12553488,112190.0,112180.0,0.68828751]
[1759138023829,0.38316504,112190.0,112180.0,0.68828751]
[1759138024117,0.38316504,112190.0,112180.0,0.17302719]
[1759138024321,0.38316504,112190.0,112180.0,0.43065735]
[1759138025717,0.12553488,112190.0,112180.0,0.43065735]
[1759138026213,0.38316504,112190.0,112180.0,0.43065735]
[1759138026429,0.36276076,112190.0,112180.0,0.43065735]
[1759138026911,0.38319566,112190.0,112180.0,0.43065735]
[1759138027314,0.36276076,112190.0,112180.0,0.43065735]
[1759138027922,0.36276076,112190.0,112180.0,0.17302719]
[1759138028113,0.36276076,112190.0,112180.0,0.43065735]
[1759138029325,0.1051306,112190.0,112180.0,0.43065735]
[1759138029527,0.36276076,112190.0,112180.0,0.17302719]
[1759138029825,0.1051306,112190.0,112180.0,0.43065735]
[1759138030022,0.38319572,112190.0,112180.0,0.38264866]
[1759138030525,0.38319572,112190.0,112180.0,0.64027882]
[1759138030828,0.38319572,112190.0,112180.0,0.1250185]
[1759138031125,0.38319572,112190.0,112180.0,0.64027882]
[1759138031518,0.02283496,112190.0,112180.0,0.89790898]
[1759138031723,0.0024,112190.0,112180.0,1.72286386]
[1759138032027,0.002,112190.0,112180.0,1.72286386]
[1759138032227,0.0024,112190.0,112180.0,1.4652337]
[1759138033614,0.0024,112190.0,112180.0,1.72286386]
[1759138034020,0.002,112190.0,112180.0,1.72286386]
[1759138034220,0.0024,112190.0,112180.0,1.72286386]
[1759138035822,0.0024,112190.0,112180.0,0.94997338]
[1759138036231,0.0024,112190.0,112180.0,1.4652337]
[1759138036624,0.0024,112190.0,112180.0,1.72286386]
[1759138037527,0.0024,112190.0,112180.0,1.4652337]
[1759138039021,0.0915106,112190.0,112180.0,1.40107882]
[1759138039624,0.0024,112190.0,112180.0,1.40107882]
[1759138040224,0.0024,112190.0,112180.0,1.14330098]
[1759138043835,0.0024,112190.0,112180.0,1.20745586]
[1759138044444,0.1051306,112190.0,112180.0,1.25027244]
[1759138044741,0.01602,112190.0,112180.0,1.61107244]
[1759138045135,0.1051306,112190.0,112180.0,1.35358996]
[1759138045335,0.1051306,112190.0,112180.0,1.61107244]
[1759138049841,0.1051306,112190.0,112180.0,1.56302098]
[1759138050248,0.01602,112190.0,112180.0,1.56302098]
[1759138050442,0.0024,112190.0,112180.0,1.56302098]
[1759138050838,0.0024,112190.0,112180.0,1.96302098]
[1759138051039,0.002,112190.0,112180.0,2.02717586]
[1759138051349,0.0024,112190.0,112180.0,2.02717586]
[1759138051548,0.002,112190.0,112180.0,2.02717586]
[1759138051748,0.0024,112190.0,112180.0,2.02717586]
[1759138057946,0.002,112190.0,112180.0,2.02717586]
[1759138058646,0.4683073,112220.0,112210.0,0.1240347]
[1759138058949,0.48708276,112220.0,112210.0,0.42960122]
[1759138059145,0.55790092,112220.0,112210.0,0.42960122]
[1759138059350,0.55830092,112220.0,112210.0,0.42960122]
[1759138059951,0.57830092,112220.0,112210.0,0.43060122]
[1759138060352,0.5874335,112220.0,112210.0,0.43060122]
[1759138061846,0.2266335,112220.0,112210.0,0.43060122]
[1759138062552,0.11159362,112220.0,112210.0,0.43060122]
[1759138062851,0.18030486,112220.0,112210.0,0.43060122]
[1759138063052,0.16430486,112220.0,112210.0,0.42960122]
[1759138063241,0.0934867,112220.0,112210.0,0.17211874]
[1759138063447,0.1103067,112220.0,112210.0,0.42960122]
[1759138063641,0.11385409,112220.0,112210.0,0.38151718]
[1759138064453,0.10985409,112220.0,112210.0,0.38151718]
[1759138064641,0.11285409,112220.0,112210.0,0.38151718]
[1759138066050,0.12967409,112220.0,112210.0,1.20075718]
[1759138066248,0.13871822,112220.0,112210.0,1.20075718]
[1759138066549,0.02336739,112220.0,112210.0,0.74231718]
[1759138066748,0.02376739,112220.0,112210.0,1.56155718]
[1759138067853,0.02376739,112220.0,112210.0,0.74231718]
[1759138068152,0.02376739,112220.0,112210.0,1.56159718]
[1759138068942,0.02376739,112220.0,112210.0,1.56155718]
[1759138069446,0.02376739,112220.0,112210.0,1.56151718]
[1759138069648,0.02376739,112220.0,112210.0,0.74231718]
[1759138069952,0.02376739,112220.0,112210.0,1.56143718]
[1759138070960,0.02376739,112220.0,112210.0,1.56135718]
[1759138071853,0.02376739,112220.0,112210.0,0.74231718]
[1759138072058,0.02376739,112220.0,112210.0,1.56119718]
[1759138072254,0.02376739,112220.0,112210.0,0.74231718]
[1759138072551,0.02376739,112220.0,112210.0,1.56115718]
[1759138073556,0.0034,112220.0,112210.0,1.60924122]
[1759138075056,0.0034,112220.0,112210.0,1.60888122]
[1759138075458,0.0034,112220.0,112210.0,0.79040122]
[1759138075658,0.0034,112220.0,112210.0,1.60888122]
[1759138076059,0.0034,112220.0,112210.0,0.79040122]
[1759138076260,0.0034,112220.0,112210.0,1.60888122]
[1759138077462,0.0924867,112220.0,112210.0,1.60888122]
[1759138079662,0.0924867,112220.0,112210.0,0.79040122]
[1759138079864,0.0924867,112220.0,112210.0,1.60852122]
[1759138080863,0.0034,112220.0,112210.0,1.60852122]
[1759138082564,0.0034,112220.0,112210.0,1.35103874]
[1759138082760,0.0034,112220.0,112210.0,1.60852122]
[1759138082966,0.003,112220.0,112210.0,1.62676498]
[1759138083162,0.0034,112220.0,112210.0,1.62676498]
[1759138086765,0.0034,112220.0,112210.0,1.57868094]
[1759138087467,0.0034,112220.0,112210.0,1.64267299]
[1759138087663,0.0034,112220.0,112210.0,0.82467299]
[1759138087868,0.0034,112220.0,112210.0,1.64275299]
[1759138089867,0.0034,112220.0,112210.0,0.82467299]
[1759138090161,0.0034,112220.0,112210.0,1.64259299]
[1759138090555,0.0034,112220.0,112210.0,0.82467299]
[1759138090761,0.0034,112220.0,112210.0,1.64259299]
[1759138091267,0.0034,112220.0,112210.0,1.57848094]
[1759138093265,0.1093067,112220.0,112210.0,0.67146624]
[1759138093464,0.76678918,112220.0,112210.0,0.03494]
[1759138093668,0.76678918,112220.0,112210.0,0.90128807]
[1759138093669,1.14796691,112220.0,112210.0,0.90128807]
[1759138093869,0.89048443,112220.0,112210.0,0.90128807]
[1759138094172,0.89048443,112220.0,112210.0,1.24786525]
[1759138095171,0.52968443,112220.0,112210.0,1.24786525]
[1759138095470,0.52968443,112220.0,112210.0,1.56055718]
[1759138096072,0.02377773,112220.0,112210.0,1.56055718]
[1759138096576,0.003,112220.0,112210.0,1.56055718]
[1759138096768,0.0034,112220.0,112210.0,1.56055718]
[1759138100373,0.0034,112220.0,112210.0,1.81778042]
[1759138100573,0.0034,112220.0,112210.0,1.88189247]
[1759138101073,0.0034,112220.0,112210.0,1.81810042]
[1759138102977,0.0034,112220.0,112210.0,1.88221247]
[1759138103574,0.023778,112220.0,112210.0,1.86621308]
[1759138110579,0.023778,112220.0,112210.0,1.88450897]
[1759138111078,0.60090865,112240.0,112230.0,0.03544]
[1759138111383,0.50647619,112250.0,112240.0,0.1245109]
[1759138111589,0.14247619,112250.0,112240.0,0.63921662]
[1759138111882,0.14327619,112250.0,112240.0,0.1245109]
[1759138112082,0.1111687,112250.0,112240.0,0.63921662]
[1759138113079,0.36852156,112250.0,112240.0,0.63921662]
[1759138113279,0.1111687,112250.0,112240.0,0.1245109]
[1759138113471,0.43878643,112250.0,112240.0,0.63921662]
[1759138114077,0.44775017,112250.0,112240.0,0.63921662]
[1759138114285,0.44775017,112250.0,112240.0,0.64121662]
[1759138114286,0.48275017,112250.0,112240.0,0.64121662]
[1759138116784,0.22539731,112250.0,112240.0,0.64121662]
[1759138117287,0.46145017,112250.0,112240.0,0.64121662]
[1759138117584,0.46145017,112250.0,112240.0,0.63921662]
[1759138117585,0.42645017,112250.0,112240.0,0.63921662]
[1759138117773,0.44775017,112250.0,112240.0,0.63921662]
[1759138117977,0.45575017,112250.0,112240.0,0.63921662]
[1759138118184,0.0088,112250.0,112240.0,1.00001662]
[1759138118590,0.008,112250.0,112240.0,1.00001662]
[1759138118887,0.0084,112250.0,112240.0,1.81777662]
[1759138120183,0.01722575,112250.0,112240.0,1.00001662]
[1759138120383,0.01722575,112250.0,112240.0,1.81781662]
[1759138120884,0.0084,112250.0,112240.0,1.81781662]
[1759138121383,0.0084,112250.0,112240.0,1.3031109]
[1759138121584,0.0084,112250.0,112240.0,1.81773662]
[1759138121785,0.0084,112250.0,112240.0,1.3030309]
[1759138121786,0.01721057,112250.0,112240.0,1.3030309]
[1759138122178,0.01721057,112250.0,112240.0,1.81773662]
[1759138122378,0.01721057,112250.0,112240.0,0.4853109]
[1759138122580,0.01721057,112250.0,112240.0,1.81761662]
[1759138122775,0.74572633,112250.0,112240.0,0.85344]
[1759138122980,0.76596667,112250.0,112240.0,0.9425109]
[1759138123181,1.16996667,112250.0,112240.0,0.9425109]
[1759138123385,1.16996667,112250.0,112240.0,0.1245109]
[1759138123987,1.16396667,112250.0,112240.0,0.1245109]
[1759138124781,1.16396667,112250.0,112240.0,0.03544]
[1759138124983,0.90661381,112250.0,112240.0,0.1245109]
[1759138125280,1.16396667,112250.0,112240.0,0.1245109]
[1759138127189,1.16396667,112250.0,112240.0,0.38186376]
[1759138128482,1.15796667,112250.0,112240.0,0.1245109]
[1759138128791,0.90361381,112250.0,112240.0,0.29279286]
[1759138128988,1.16096667,112250.0,112240.0,0.29279286]
[1759138129188,1.16096667,112250.0,112240.0,0.38186336]
[1759138129489,1.16096667,112250.0,112240.0,0.1245105]
[1759138129791,1.16096667,112250.0,112240.0,0.38186336]
[1759138129993,1.16696667,112250.0,112240.0,0.38186336]
[1759138130291,1.14672633,112250.0,112240.0,0.38186336]
[1759138131089,1.16698099,112250.0,112240.0,0.38186336]
[1759138131692,1.14672633,112250.0,112240.0,0.38186336]
[1759138131886,1.14672633,112250.0,112240.0,0.1245105]
[1759138132090,1.14672633,112250.0,112240.0,0.38186336]
[1759138132290,1.96456633,112250.0,112240.0,0.38186336]
[1759138133204,1.98482403,112250.0,112240.0,0.38186336]
[1759138133504,1.96456633,112250.0,112240.0,0.38186336]
[1759138134301,1.96456633,112250.0,112240.0,0.17262753]
[1759138134504,1.96456633,112250.0,112240.0,0.42998039]
[1759138134801,1.70721347,112250.0,112240.0,0.42998039]
[1759138135105,1.96456633,112250.0,112240.0,0.42998039]
[1759138136903,1.96456633,112250.0,112240.0,0.34090989]
[1759138137198,1.14672633,112250.0,112240.0,0.42998049]
[1759138137402,1.96448633,112250.0,112240.0,0.42998049]
[1759138137602,1.70713347,112250.0,112240.0,0.42998049]
[1759138137804,1.96448633,112250.0,112240.0,0.68733335]
[1759138138100,0.88937347,112250.0,112240.0,0.68733335]
[1759138138502,1.70685347,112250.0,112240.0,0.68733335]
[1759138139202,0.88937347,112250.0,112240.0,0.68733335]
[1759138139399,1.70713347,112250.0,112240.0,0.68733335]
[1759138139700,1.70713347,112250.0,112240.0,0.17262763]
[1759138140096,1.72741717,112250.0,112240.0,0.68733335]
[1759138140606,1.72741717,112250.0,112240.0,0.17262763]
[1759138140808,1.72741717,112250.0,112240.0,0.68733335]
[1759138141295,1.98477003,112250.0,112240.0,0.68733335]
[1759138142107,1.72741717,112250.0,112240.0,0.68733335]
[1759138142307,1.98477003,112250.0,112240.0,0.68733335]
[1759138142606,1.98493003,112250.0,112240.0,0.17262763]
[1759138142803,1.98493003,112250.0,112240.0,0.68733335]
[1759138143411,1.16701003,112250.0,112240.0,0.68733335]
[1759138143608,1.98489003,112250.0,112240.0,0.68733335]
[1759138144508,1.16701003,112250.0,112240.0,0.68733335]
[1759138144708,1.98481003,112250.0,112240.0,0.68733335]
[1759138145205,0.45979427,112250.0,112240.0,0.68733335]
[1759138145510,1.53474713,112250.0,112240.0,1.04813335]
[1759138145697,1.27739427,112250.0,112240.0,1.04813335]
[1759138147011,1.53474713,112250.0,112240.0,1.04813335]
[1759138147510,1.62381003,112250.0,112240.0,1.04813335]
[1759138147811,1.53474713,112250.0,112240.0,1.04813335]
[1759138148114,1.62381033,112250.0,112240.0,1.04813335]
[1759138148301,1.62381033,112250.0,112240.0,0.53342763]
[1759138148506,1.62381033,112250.0,112240.0,1.04813335]
[1759138148507,0.45979427,112250.0,112240.0,1.04813335]
[1759138148709,1.27743427,112250.0,112240.0,1.04813335]
[1759138148900,1.53478713,112250.0,112240.0,1.04813335]
[1759138149812,1.62385113,112250.0,112240.0,1.04813335]
[1759138150614,0.80621113,112250.0,112240.0,1.04813335]
[1759138150914,1.62361113,112250.0,112240.0,1.04813335]
[1759138151609,1.62361113,112250.0,112240.0,0.53342763]
[1759138151814,1.62361113,112250.0,112240.0,1.04813335]
[1759138152214,1.62361113,112250.0,112240.0,1.00001632]
[1759138152815,1.98441113,112250.0,112240.0,0.63921632]
[1759138153013,1.72705827,112250.0,112240.0,0.68733513]
[1759138153215,1.98441113,112250.0,112240.0,0.42998227]
[1759138153716,1.98441113,112250.0,112240.0,0.38186346]
[1759138155813,1.72705827,112250.0,112240.0,0.38186346]
[1759138156215,1.98441113,112250.0,112240.0,0.38186346]
[1759138156610,1.98441113,112250.0,112240.0,0.1245106]
[1759138156812,1.98441113,112250.0,112240.0,0.38186346]
[1759138162316,1.98434852,112250.0,112240.0,0.38180085]
[1759138162711,1.98436958,112250.0,112240.0,0.38180085]
[1759138163319,0.02223,112240.0,112230.0,0.1247995]
[1759138163520,0.29982501,112240.0,112230.0,0.1247995]
[1759138163715,0.38889751,112240.0,112230.0,0.1247995]
[1759138163922,0.38889751,112240.0,112230.0,0.38208975]
[1759138165322,0.13160726,112240.0,112230.0,0.38208975]
[1759138167823,0.38889751,112240.0,112230.0,0.38208975]
[1759138168023,0.36859275,112240.0,112230.0,0.4462018]
[1759138168321,0.36859275,112240.0,112230.0,0.1247995]
[1759138169117,0.72939275,112240.0,112230.0,0.1247995]
[1759138169816,1.54551275,112240.0,112230.0,0.1247995]
[1759138171727,0.72939275,112240.0,112230.0,0.1247995]
[1759138172131,1.54531275,112240.0,112230.0,0.1247995]
[1759138172321,0.72939275,112240.0,112230.0,0.1247995]
[1759138172825,1.54523275,112240.0,112230.0,0.1247995]
[1759138173529,0.72939275,112240.0,112230.0,0.1247995]
[1759138173724,1.54519275,112240.0,112230.0,0.38208975]
[1759138173923,0.72939275,112240.0,112230.0,0.38208975]
[1759138174229,1.54507275,112240.0,112230.0,0.4462018]
[1759138176125,0.38303,112240.0,112230.0,0.4462018]
[1759138176326,1.19843,112240.0,112230.0,0.4462018]
[1759138178031,1.2875024,112240.0,112230.0,0.4462018]
[1759138178434,1.2875024,112240.0,112230.0,0.18891155]
[1759138178633,1.2875024,112240.0,112230.0,0.4462018]
[1759138179228,1.54479265,112240.0,112230.0,0.18891155]
[1759138179734,1.45572025,112240.0,112230.0,0.18891155]
[1759138181128,1.19851,112240.0,112230.0,0.18891155]
[1759138181329,0.83767,112240.0,112230.0,0.18891155]
[1759138181635,0.83767,112240.0,112230.0,0.4462018]
[1759138182533,0.83767,112240.0,112230.0,0.18891155]
[1759138182735,0.83767,112240.0,112230.0,0.4462018]
[1759138183440,0.02223,112240.0,112230.0,0.4462018]
[1759138183633,0.83767,112240.0,112230.0,0.4462018]
[1759138184340,0.83783,112240.0,112230.0,0.4462018]
[1759138185438,1.19787355,112240.0,112230.0,0.17508325]
[1759138185637,1.19787355,112240.0,112230.0,0.0890812]
[1759138185638,1.97897822,112240.0,112230.0,0.0890812]
[1759138186136,1.99934808,112240.0,112230.0,0.13719196]
[1759138186342,1.99934808,112240.0,112230.0,0.15908196]
[1759138187240,2.14744808,112240.0,112230.0,0.15908196]
[1759138187435,0.06290453,112240.0,112230.0,0.42897221]
[1759138187640,0.85803986,112240.0,112230.0,0.42897221]
[1759138187839,0.85803986,112240.0,112230.0,0.38086145]
[1759138188236,0.04299986,112240.0,112230.0,0.38086145]
[1759138188438,0.04259986,112240.0,112230.0,0.38086145]
[1759138188638,0.04299986,112240.0,112230.0,0.38086145]
[1759138189452,0.04299986,112240.0,112230.0,0.4449735]
[1759138191937,0.49287316,112240.0,112230.0,0.4449735]
[1759138192245,0.49287316,112240.0,112230.0,0.38086145]
[1759138192647,0.49287316,112240.0,112230.0,0.1235712]
[1759138192846,0.49287316,112240.0,112230.0,0.38086145]
[1759138193748,0.49287316,112240.0,112230.0,0.42896006]
[1759138193749,0.51318548,112240.0,112230.0,0.42896006]
[1759138194739,0.51318548,112240.0,112230.0,0.17166981]
[1759138194939,0.51318548,112240.0,112230.0,0.42896006]
[1759138195141,0.51318548,112240.0,112230.0,0.17166981]
[1759138195446,0.51318548,112240.0,112230.0,0.42896006]
[1759138196841,0.42411218,112240.0,112230.0,0.42896006]
[1759138202560,0.51318538,112240.0,112230.0,0.42896006]
[1759138203661,0.49287306,112240.0,112230.0,0.42896006]
[1759138204448,0.49287306,112240.0,112230.0,0.17166981]
[1759138204644,0.77047555,112240.0,112230.0,0.17166981]
[1759138205859,1.17777555,112240.0,112230.0,0.06998861]
[1759138206158,1.17777555,112240.0,112230.0,0.13717981]
[1759138206552,1.17777555,112240.0,112230.0,0.15821981]
[1759138206757,1.99233555,112240.0,112230.0,0.15821981]
[1759138207260,2.14033555,112240.0,112230.0,0.15821981]
[1759138208057,1.2386721,112240.0,112230.0,0.42890006]
[1759138208563,0.4241121,112240.0,112230.0,0.68619031]
[1759138208862,0.4241121,112240.0,112230.0,0.42890006]
[1759138209060,0.4237121,112240.0,112230.0,0.42890006]
[1759138209361,0.4241121,112240.0,112230.0,0.42890006]
[1759138209863,0.4241121,112240.0,112230.0,0.17160981]
[1759138210062,0.4241121,112240.0,112230.0,0.42890006]
[1759138210762,0.4241121,112240.0,112230.0,0.38080145]
[1759138212757,0.5131853,112240.0,112230.0,0.42890572]
[1759138212958,0.78327555,112240.0,112230.0,0.17161547]
[1759138214161,0.78327555,112240.0,112230.0,0.15822547]
[1759138218468,0.4241121,112240.0,112230.0,0.42867572]
[1759138218767,0.4241121,112240.0,112230.0,0.6378617]
[1759138218768,0.02076986,112240.0,112230.0,0.6378617]
[1759138218962,0.02076986,112240.0,112230.0,0.70197375]
[1759138219163,0.02036986,112240.0,112230.0,0.70197375]
[1759138219359,0.04209986,112240.0,112230.0,0.70197375]
[1759138219560,0.04209986,112240.0,112230.0,0.4446835]
[1759138221168,0.04209986,112240.0,112230.0,0.18739325]
[1759138221365,0.04109893,112240.0,112230.0,2.2146617]
[1759138221563,0.02036986,112240.0,112230.0,2.2146617]
[1759138221766,0.3616,112250.0,112240.0,0.1244332]
[1759138221964,0.3616,112250.0,112240.0,0.44587159]
[1759138222267,0.38253,112250.0,112240.0,0.70303842]
[1759138223064,0.38853,112250.0,112240.0,0.70303842]
[1759138224265,0.39153,112250.0,112240.0,0.63889028]
[1759138224568,0.4805953,112250.0,112240.0,0.63889028]
[1759138227165,0.4805953,112250.0,112240.0,0.68695386]
[1759138230076,0.39153,112250.0,112240.0,0.68695386]
[1759138232176,0.39153,112250.0,112240.0,0.17249678]
[1759138232373,0.39153,112250.0,112240.0,0.68695386]
[1759138233869,0.39153,112250.0,112240.0,0.17249678]
[1759138234269,0.39153,112250.0,112240.0,0.68695386]
[1759138236879,0.39153,112250.0,112240.0,0.17249678]
[1759138237079,0.39153,112250.0,112240.0,0.68695386]
[1759138243680,0.41183535,112250.0,112240.0,0.68695386]
[1759138248186,0.41183535,112250.0,112240.0,0.17249678]
[1759138248386,0.41183535,112250.0,112240.0,0.68695386]
[1759138248587,0.50090065,112250.0,112240.0,0.68695386]
[1759138249684,0.50090065,112250.0,112240.0,0.17249678]
[1759138249880,0.75812919,112250.0,112240.0,1.50151386]
[1759138250590,0.75812919,112250.0,112240.0,0.17249678]
[1759138250784,0.75812919,112250.0,112240.0,1.24428532]
[1759138250989,0.75812919,112250.0,112240.0,0.42972532]
[1759138252283,0.75812919,112250.0,112240.0,0.17249678]
[1759138252486,0.75812919,112250.0,112240.0,0.42972532]
[1759138253682,0.75812919,112250.0,112240.0,0.38166174]
[1759138254284,0.75812919,112250.0,112240.0,0.1244332]
[1759138254487,0.75812919,112250.0,112240.0,0.38166174]
[1759138254679,0.50090065,112250.0,112240.0,0.38166174]
[1759138254884,0.75812919,112250.0,112240.0,0.38166174]
[1759138255289,0.50090065,112250.0,112240.0,0.38166174]
[1759138255488,0.75812919,112250.0,112240.0,0.38166174]
[1759138256690,0.75812919,112250.0,112240.0,0.1244332]
[1759138256890,0.75812919,112250.0,112240.0,0.38166174]
[1759138261092,0.75812919,112250.0,112240.0,0.1244332]
[1759138261288,0.75812919,112250.0,112240.0,0.38166174]
[1759138266795,0.73782384,112250.0,112240.0,0.44580988]